bitfinex/quotes_BTCUSD_20230118
["timestamp","ask_amount","ask_price","bid_price","bid_amount"]
[1674067847369,0.34669416,20939.0,20936.0,0.04968079]
[1674067847627,0.77476741,20940.0,20936.0,0.04968079]
[1674067847878,0.77476741,20940.0,20936.0,0.24400176]
[1674067848171,0.319095,20939.0,20936.0,0.24400176]
[1674067848421,0.34669416,20939.0,20936.0,0.04968079]
[1674067848669,0.84163325,20940.0,20936.0,0.04968079]
[1674067848670,1.07421765,20940.0,20936.0,0.04968079]
[1674067848928,1.07421765,20940.0,20936.0,0.24400176]
[1674067849180,0.59665765,20940.0,20936.0,0.24400176]
[1674067849491,0.59665765,20940.0,20936.0,0.04968079]
[1674067849748,0.064,20939.0,20936.0,1.00495379]
[1674067849987,0.41069416,20939.0,20936.0,0.52730879]
[1674067850244,0.064,20939.0,20936.0,0.04968079]
[1674067850519,0.34669416,20939.0,20936.0,0.52731679]
[1674067850807,0.57371465,20940.0,20936.0,0.52731679]
[1674067851060,0.064,20939.0,20936.0,0.72163776]
[1674067851313,0.064,20939.0,20937.0,0.627617]
[1674067851571,0.064,20939.0,20938.0,0.25797]
[1674067852078,0.064,20939.0,20937.0,0.477617]
[1674067853091,0.09,20939.0,20937.0,0.477617]
[1674067853340,0.34669416,20941.0,20937.0,0.477617]
[1674067853588,0.089,20939.0,20937.0,0.67193797]
[1674067853843,0.089,20939.0,20937.0,0.477617]
[1674067854354,0.089,20939.0,20936.0,0.477634]
[1674067854603,0.48352766,20939.0,20936.0,0.477634]
[1674067854860,0.089,20939.0,20936.0,0.54858272]
[1674067855115,0.19271448,20939.0,20936.0,0.54858272]
[1674067855369,0.089,20939.0,20936.0,0.54858272]
[1674067856142,0.34669416,20940.0,20937.0,0.19432097]
[1674067856408,0.064,20939.0,20938.0,0.885555]
[1674067856947,0.34669416,20942.0,20938.0,0.735555]
[1674067856948,0.19703718,20941.0,20938.0,0.735555]
[1674067857245,0.089,20940.0,20938.0,0.477585]
[1674067857446,0.089,20940.0,20938.0,0.67190597]
[1674067857691,0.089,20940.0,20939.0,1.290308]
[1674067857954,0.00980947,20944.0,20939.0,1.590308]
[1674067858214,0.00980947,20944.0,20941.0,1.289976]
[1674067858473,0.00980947,20944.0,20943.0,1.289968]
[1674067858719,0.00980947,20944.0,20943.0,1.48428897]
[1674067858966,0.00980947,20944.0,20943.0,1.289968]
[1674067859743,0.00980947,20944.0,20943.0,1.367468]
[1674067859989,0.01880947,20944.0,20943.0,1.377468]
[1674067860237,0.00980947,20944.0,20943.0,1.817468]
[1674067860491,0.01880947,20944.0,20943.0,1.527468]
[1674067860994,0.01880947,20944.0,20943.0,1.827468]
[1674067861259,0.01880947,20944.0,20943.0,2.54338969]
[1674067861778,0.01880947,20944.0,20943.0,2.59983942]
[1674067862075,0.01880947,20944.0,20943.0,2.54338969]
[1674067862343,0.01880947,20944.0,20943.0,2.3099889]
[1674067862601,0.01880947,20944.0,20943.0,1.59406721]
[1674067863407,0.01880947,20944.0,20943.0,1.44406721]
[1674067863668,0.01880947,20944.0,20943.0,1.28946721]
[1674067866811,0.01880947,20944.0,20943.0,0.745382]
[1674067867062,0.01880947,20944.0,20943.0,0.487486]
[1674067868350,0.01880947,20944.0,20943.0,0.01]
[1674067868616,0.01880947,20944.0,20943.0,0.81778647]
[1674067868884,0.01880947,20944.0,20943.0,0.9583585]
[1674067869132,0.01880947,20944.0,20943.0,1.3588445]
[1674067869640,0.01880947,20944.0,20943.0,0.8813585]
[1674067869917,0.01880947,20944.0,20943.0,0.8083585]
[1674067870185,0.01880947,20944.0,20943.0,1.2858445]
[1674067870426,0.01880947,20944.0,20943.0,1.22227247]
[1674067870676,0.01871522,20944.0,20943.0,1.2858445]
[1674067871187,0.01871522,20944.0,20943.0,1.7633305]
[1674067871957,0.01871522,20944.0,20943.0,1.2858445]
[1674067873654,0.01871522,20944.0,20943.0,0.8083585]
[1674067873904,0.01871522,20944.0,20943.0,0.5504655]
[1674067874415,0.01871522,20944.0,20943.0,0.8083585]
[1674067874917,0.01871522,20944.0,20943.0,1.2858445]
[1674067875685,0.01871522,20944.0,20943.0,1.28575052]
[1674067876980,0.01871522,20944.0,20943.0,1.43575052]
[1674067877470,0.01871522,20944.0,20943.0,1.28575052]
[1674067877767,0.01871522,20944.0,20943.0,0.74528502]
[1674067878016,0.01871522,20944.0,20943.0,0.48739202]
[1674067878262,0.01871522,20944.0,20943.0,0.00990602]
[1674067878519,0.01871522,20944.0,20943.0,0.96487802]
[1674067878776,0.01871522,20944.0,20943.0,1.22277102]
[1674067879813,0.01871522,20944.0,20943.0,1.29577102]
[1674067880080,0.01871522,20944.0,20943.0,1.37277102]
[1674067884137,0.01871522,20944.0,20943.0,1.45037102]
[1674067885911,0.01871522,20944.0,20943.0,1.75037102]
[1674067886170,0.01871522,20944.0,20943.0,3.06776871]
[1674067886426,0.01871522,20944.0,20943.0,2.9002767]
[1674067886680,0.01871522,20944.0,20943.0,2.83890271]
[1674067886957,0.01871522,20944.0,20943.0,2.9054655]
[1674067887224,0.01871522,20944.0,20943.0,2.89532936]
[1674067887474,0.01871522,20944.0,20943.0,3.34120271]
[1674067887738,0.01871522,20944.0,20943.0,2.91153776]
[1674067888220,0.00900714,20947.0,20944.0,0.15549076]
[1674067888473,0.00900714,20947.0,20946.0,0.1552]
[1674067888729,0.00900714,20947.0,20946.0,1.817886]
[1674067889246,0.00900714,20947.0,20946.0,2.29041614]
[1674067889515,0.00900714,20947.0,20946.0,2.21748769]
[1674067889769,0.00900714,20947.0,20946.0,2.28887588]
[1674067890276,0.00900714,20947.0,20946.0,2.28167919]
[1674067891030,0.00900714,20947.0,20946.0,2.28267919]
[1674067891283,0.00900714,20947.0,20946.0,2.35175496]
[1674067892389,0.00900714,20947.0,20946.0,1.01050327]
[1674067892664,0.00900714,20947.0,20946.0,1.26835127]
[1674067893673,0.15523714,20947.0,20946.0,1.36135127]
[1674067893924,0.08223714,20947.0,20946.0,0.477418]
[1674067894182,0.73370725,20947.0,20946.0,0.093]
[1674067894464,0.74215925,20947.0,20946.0,0.093]
[1674067894727,0.74215925,20947.0,20944.0,0.00549076]
[1674067894982,0.0773,20945.0,20944.0,0.48293776]
[1674067895240,0.39571,20946.0,20944.0,0.00549076]
[1674067895241,0.0768,20946.0,20944.0,0.00549076]
[1674067895848,0.475532,20945.0,20944.0,0.00549076]
[1674067896104,0.625532,20945.0,20944.0,0.00549076]
[1674067896375,1.402972,20945.0,20944.0,0.00549076]
[1674067896630,1.402972,20945.0,20944.0,0.01249076]
[1674067896895,1.402972,20945.0,20944.0,0.00549076]
[1674067897202,1.402972,20945.0,20944.0,0.01349076]
[1674067897463,1.51708176,20945.0,20944.0,0.01349076]
[1674067897715,2.84514273,20945.0,20944.0,0.01349076]
[1674067897969,3.8003725,20945.0,20944.0,0.01349076]
[1674067898248,3.97154251,20945.0,20944.0,0.01349076]
[1674067898508,2.24514273,20945.0,20944.0,0.01349076]
[1674067898773,3.8209044,20945.0,20944.0,0.01349076]
[1674067899029,2.69449696,20945.0,20944.0,0.01349076]
[1674067899298,1.12599297,20945.0,20944.0,0.01349076]
[1674067899585,0.84026273,20945.0,20944.0,0.01349076]
[1674067899890,2.90040548,20945.0,20944.0,0.01349076]
[1674067900159,2.86878802,20945.0,20944.0,0.01349076]
[1674067900411,4.31100251,20945.0,20944.0,0.01349076]
[1674067900693,4.45073879,20945.0,20944.0,0.01349076]
[1674067900956,4.72278554,20945.0,20944.0,0.01349076]
[1674067901485,3.88846748,20945.0,20944.0,0.01349076]
[1674067901734,4.17358489,20945.0,20944.0,0.01349076]
[1674067901984,3.93585979,20945.0,20944.0,0.01349076]
[1674067902241,4.16416587,20945.0,20944.0,0.01349076]
[1674067902742,3.65100402,20945.0,20944.0,0.01349076]
[1674067902995,3.91271215,20945.0,20944.0,0.01349076]
[1674067903255,3.55795708,20945.0,20944.0,0.01349076]
[1674067903506,2.43153618,20945.0,20944.0,0.01349076]
[1674067903765,2.01743519,20945.0,20944.0,0.01349076]
[1674067904020,1.199772,20945.0,20944.0,0.01349076]
[1674067904288,0.722332,20945.0,20944.0,0.01349076]
[1674067906082,0.722332,20945.0,20944.0,0.00549076]
[1674067906083,1.44031408,20945.0,20944.0,0.00549076]
[1674067906385,1.29031408,20945.0,20944.0,0.01349076]
[1674067906603,1.88185507,20945.0,20944.0,0.01349076]
[1674067907142,1.88185507,20945.0,20944.0,0.00549076]
[1674067907397,1.88185507,20945.0,20944.0,0.01349076]
[1674067907681,2.24255085,20945.0,20944.0,0.00549076]
[1674067907905,2.79759085,20945.0,20944.0,0.01349076]
[1674067908416,2.968749,20945.0,20944.0,0.01349076]
[1674067908675,3.92407343,20945.0,20944.0,0.01349076]
[1674067908936,3.96640985,20945.0,20944.0,0.01349076]
[1674067909190,4.92177198,20945.0,20944.0,0.01349076]
[1674067909965,4.92177198,20945.0,20944.0,9.076e-05]
[1674067910251,0.15,20944.0,20938.0,0.34669416]
[1674067910470,0.0776,20939.0,20937.0,0.0610544]
[1674067910730,0.4435405,20938.0,20937.0,0.0610544]
[1674067911019,0.4435405,20938.0,20935.0,0.00988045]
[1674067911275,0.0768,20936.0,20935.0,0.00988045]
[1674067911550,0.384105,20936.0,20935.0,0.48754845]
[1674067911799,0.0768,20936.0,20935.0,0.00988045]
[1674067912912,0.0768,20936.0,20935.0,0.00979302]
[1674067913093,0.1398,20936.0,20935.0,0.00979302]
[1674067913861,0.0768,20936.0,20935.0,0.00979302]
[1674067914128,0.1668,20936.0,20935.0,0.00979302]
[1674067914393,0.0768,20936.0,20935.0,0.00979302]
[1674067914653,0.1668,20936.0,20935.0,0.00979302]
[1674067914922,0.0768,20936.0,20935.0,0.00979302]
[1674067916219,0.1668,20936.0,20935.0,0.00979302]
[1674067916477,0.63119645,20936.0,20935.0,0.00979302]
[1674067916736,0.507703,20936.0,20935.0,0.00979302]
[1674067916975,0.0768,20936.0,20935.0,0.00979302]
[1674067917245,0.1678,20936.0,20935.0,0.00979302]
[1674067919598,1.047436,20936.0,20935.0,0.00979302]
[1674067920375,0.56979,20936.0,20935.0,0.00979302]
[1674067920626,0.956436,20936.0,20935.0,0.00979302]
[1674067920877,1.047436,20936.0,20935.0,0.00979302]
[1674067921142,0.956436,20936.0,20935.0,0.00979302]
[1674067921395,1.45440935,20936.0,20935.0,0.00979302]
[1674067921911,1.2896409,20936.0,20935.0,0.00968529]
[1674067922418,1.2123409,20936.0,20935.0,0.00968529]
[1674067922705,1.5123409,20936.0,20935.0,0.00968529]
[1674067923248,1.2123409,20936.0,20935.0,0.00968529]
[1674067924251,0.091,20936.0,20935.0,0.00968529]
[1674067924513,0.091,20936.0,20935.0,0.55838422]
[1674067924761,0.091,20936.0,20935.0,0.81639922]
[1674067925881,0.091,20936.0,20935.0,1.90670184]
[1674067926068,0.19295,20940.0,20935.0,2.38390353]
[1674067926322,0.19295,20940.0,20938.0,0.23879]
[1674067926593,0.19295,20940.0,20939.0,0.3]
[1674067926839,0.19295,20940.0,20939.0,1.768286]
[1674067927113,0.19295,20940.0,20939.0,1.690686]
[1674067927858,0.19253,20941.0,20939.0,1.690686]
[1674067928111,0.41722502,20944.0,20940.0,0.25794]
[1674067928112,0.22469502,20944.0,20940.0,0.25794]
[1674067928365,0.22469502,20944.0,20941.0,0.67184797]
[1674067928620,1.23316514,20947.0,20942.0,0.257909]
[1674067928872,0.24149511,20946.0,20943.0,0.19432097]
[1674067929131,0.71891311,20946.0,20943.0,0.19432097]
[1674067929414,0.324593,20945.0,20943.0,0.19432097]
[1674067929686,0.24149511,20946.0,20942.0,0.477499]
[1674067929687,0.3127,20944.0,20942.0,0.477499]
[1674067929940,0.5252985,20944.0,20943.0,0.006]
[1674067930192,0.798609,20944.0,20943.0,0.006]
[1674067930699,0.798609,20944.0,20939.0,0.34587174]
[1674067930962,0.3652725,20943.0,20938.0,0.87770555]
[1674067931238,0.0478335,20942.0,20939.0,0.477562]
[1674067931494,0.26949517,20943.0,20939.0,0.477562]
[1674067931747,0.31732867,20943.0,20939.0,0.477562]
[1674067932301,0.26949517,20943.0,20939.0,0.477562]
[1674067932517,0.26949517,20943.0,20939.0,1.24245997]
[1674067932770,0.342671,20945.0,20939.0,1.14945997]
[1674067933021,0.3905045,20945.0,20940.0,0.19432097]
[1674067933282,0.265071,20945.0,20941.0,1.14936097]
[1674067933539,0.265071,20945.0,20942.0,0.257909]
[1674067933789,0.265071,20945.0,20942.0,0.67182797]
[1674067934044,0.265071,20945.0,20942.0,0.477507]
[1674067934874,0.265071,20945.0,20941.0,0.06389124]
[1674067935118,0.3129045,20945.0,20941.0,0.06389124]
[1674067935373,0.3129045,20945.0,20942.0,0.95501]
[1674067935648,0.265071,20945.0,20942.0,0.95501]
[1674067935897,0.265071,20945.0,20942.0,0.477504]
[1674067936658,0.12300827,20947.0,20942.0,1.14933397]
[1674067936908,0.12300827,20947.0,20943.0,0.24915172]
[1674067936909,0.00900714,20947.0,20943.0,0.24915172]
[1674067937162,0.00900714,20947.0,20943.0,0.72661772]
[1674067937674,0.21324094,20946.0,20943.0,0.24915172]
[1674067937923,0.21324094,20946.0,20943.0,0.05483075]
[1674067939714,0.21324094,20946.0,20943.0,1.00979975]
[1674067940495,0.21324094,20946.0,20943.0,0.05483075]
[1674067940761,0.34104936,20946.0,20942.0,0.477507]
[1674067941408,0.26107444,20946.0,20942.0,0.477507]
[1674067941620,0.21324094,20946.0,20942.0,0.74003045]
[1674067941873,0.08630714,20947.0,20942.0,1.27353945]
[1674067942154,0.00900714,20947.0,20943.0,0.19432097]
[1674067942454,0.00900714,20947.0,20944.0,0.954922]
[1674067942739,0.00900714,20947.0,20945.0,0.45218597]
[1674067942998,0.00900714,20947.0,20946.0,1.432254]
[1674067943253,0.00900714,20947.0,20946.0,1.690103]
[1674067944327,0.00900714,20947.0,20946.0,1.83087472]
[1674067944583,0.00900714,20947.0,20946.0,1.767703]
[1674067945436,0.00900714,20947.0,20946.0,1.89241845]
[1674067945693,0.00900714,20947.0,20946.0,1.767703]
[1674067946238,0.00900714,20947.0,20946.0,1.9150032]
[1674067946501,0.00900714,20947.0,20946.0,1.8220032]
[1674067946771,0.00900714,20947.0,20946.0,1.9150032]
[1674067948060,0.00900714,20947.0,20946.0,2.238303]
[1674067948586,0.00900714,20947.0,20946.0,2.71550469]
[1674067948836,0.00900714,20947.0,20946.0,3.04828526]
[1674067949609,0.00892443,20947.0,20946.0,2.95528526]
[1674067950134,0.00892443,20947.0,20946.0,3.04828526]
[1674067950401,0.00892443,20947.0,20946.0,2.95528526]
[1674067950666,0.00892443,20947.0,20946.0,2.71766455]
[1674067951178,0.00892443,20947.0,20946.0,2.41766455]
[1674067951430,0.00892443,20947.0,20946.0,1.86266286]
[1674067951682,0.00892443,20947.0,20946.0,1.74772779]
[1674067951986,0.00892443,20947.0,20946.0,1.27030979]
[1674067952196,0.00892443,20947.0,20946.0,1.36330979]
[1674067952706,0.00892443,20947.0,20946.0,1.45630979]
[1674067952966,0.00892443,20947.0,20946.0,1.27030979]
[1674067953506,0.00892443,20947.0,20946.0,1.01246079]
[1674067953790,0.00892443,20947.0,20946.0,0.62804279]
[1674067954039,0.00892443,20947.0,20946.0,0.40847279]
[1674067954297,0.00892443,20947.0,20946.0,0.88589079]
[1674067954594,0.00892443,20947.0,20946.0,1.36330879]
[1674067954813,0.00892443,20947.0,20946.0,0.88589079]
[1674067955068,0.00892443,20947.0,20946.0,1.36330879]
[1674067955861,0.00892443,20947.0,20946.0,1.44030879]
[1674067957893,0.00892443,20947.0,20946.0,1.74030879]
[1674067958182,0.00892443,20947.0,20946.0,1.998594]
[1674067958491,0.00892443,20947.0,20946.0,2.18567457]
[1674067958687,0.00892443,20947.0,20946.0,2.24730094]
[1674067958963,0.00892443,20947.0,20946.0,2.18567457]
[1674067959196,0.00892443,20947.0,20946.0,2.66287626]
[1674067959451,0.00944484,20949.0,20947.0,0.15234155]
[1674067959714,0.00944484,20949.0,20948.0,1.509716]
[1674067959964,0.34475198,20954.0,20949.0,0.2274]
[1674067960239,0.00993219,20956.0,20952.0,0.0776]
[1674067960486,0.00993219,20956.0,20953.0,1.88382897]
[1674067960743,0.00993219,20956.0,20954.0,0.19432097]
[1674067961008,0.00993219,20956.0,20955.0,0.734926]
[1674067961271,0.00993219,20956.0,20955.0,0.477213]
[1674067961540,0.00993219,20956.0,20955.0,0.954426]
[1674067963636,0.00993219,20956.0,20955.0,1.212137]
[1674067964897,0.00993219,20956.0,20955.0,1.516937]
[1674067965667,0.00993219,20956.0,20955.0,1.572937]
[1674067966729,0.00993219,20956.0,20955.0,2.16989914]
[1674067967527,0.01051696,20960.0,20955.0,3.14351222]
[1674067967803,0.01051696,20960.0,20959.0,0.0772]
[1674067968063,0.01051696,20960.0,20959.0,0.52917597]
[1674067968322,0.01051696,20960.0,20959.0,2.33814197]
[1674067968850,0.01051696,20960.0,20959.0,2.18090157]
[1674067969103,0.01051696,20960.0,20959.0,2.65810326]
[1674067969383,0.01051696,20960.0,20959.0,2.143821]
[1674067969611,0.01051696,20960.0,20959.0,2.236821]
[1674067970111,0.01051696,20960.0,20959.0,1.936821]
[1674067970368,0.01051696,20960.0,20959.0,2.00010529]
[1674067970629,0.01051696,20960.0,20959.0,1.84530529]
[1674067972184,0.01051696,20960.0,20959.0,1.84555962]
[1674067972709,0.01051696,20960.0,20959.0,1.92315962]
[1674067973485,0.01051696,20960.0,20959.0,2.22315962]
[1674067973736,0.01051696,20960.0,20959.0,2.46171962]
[1674067973988,0.01051696,20960.0,20959.0,2.93892131]
[1674067974261,0.01051696,20960.0,20959.0,2.40036131]
[1674067974511,0.01051696,20960.0,20959.0,1.92315962]
[1674067975561,0.01051696,20960.0,20959.0,2.22315962]
[1674067976343,0.01051696,20960.0,20959.0,1.92315962]
[1674067976607,0.01051696,20960.0,20959.0,2.22315962]
[1674067978145,0.01051696,20960.0,20959.0,1.92315962]
[1674067978393,0.01051696,20960.0,20959.0,1.36818329]
[1674067978660,0.01051696,20960.0,20959.0,1.11052829]
[1674067979420,0.01051696,20960.0,20959.0,1.36817829]
[1674067979698,0.00051696,20960.0,20959.0,1.44557829]
[1674067979995,0.00051696,20960.0,20959.0,1.59557829]
[1674067980249,0.00051696,20960.0,20959.0,1.89557829]
[1674067980776,0.00051696,20960.0,20959.0,1.59557829]
[1674067981045,0.00051696,20960.0,20959.0,1.44557829]
[1674067981570,0.00051696,20960.0,20959.0,1.382294]
[1674067981837,0.07374696,20960.0,20959.0,0.093]
[1674067982085,0.00051696,20960.0,20959.0,0.093]
[1674067982352,0.20783092,20960.0,20959.0,0.093]
[1674067982608,0.54044692,20960.0,20959.0,0.093]
[1674067983140,0.40636296,20960.0,20959.0,0.093]
[1674067983381,0.07374696,20960.0,20959.0,0.093]
[1674067983639,0.00051696,20960.0,20959.0,0.093]
[1674067983933,0.00051696,20960.0,20958.0,0.477125]
[1674067984186,0.314674,20959.0,20956.0,0.54297916]
[1674067984482,0.00051696,20960.0,20954.0,0.34475198]
[1674067984483,0.0478335,20958.0,20954.0,0.34475198]
[1674067984727,0.0478335,20958.0,20954.0,0.477226]
[1674067984728,0.4304005,20957.0,20954.0,0.477226]
[1674067985018,0.3607045,20956.0,20955.0,0.477212]
[1674067985280,0.0776,20957.0,20954.0,0.954446]
[1674067985543,0.28655982,20960.0,20957.0,0.03157759]
[1674067985842,0.001,20959.0,20958.0,0.67146497]
[1674067986102,0.001,20959.0,20958.0,1.14860897]
[1674067986373,0.001,20959.0,20958.0,1.272102]
[1674067986640,0.001,20959.0,20958.0,1.422102]
[1674067986907,0.00051696,20960.0,20958.0,1.722102]
[1674067987168,0.00051696,20960.0,20959.0,0.15]
[1674067987446,0.00051696,20960.0,20959.0,1.661896]
[1674067987745,0.00051696,20960.0,20959.0,1.361896]
[1674067988002,0.00051696,20960.0,20959.0,2.45524769]
[1674067988269,0.00051696,20960.0,20959.0,1.739496]
[1674067988522,0.00051696,20960.0,20959.0,1.361896]
[1674067989321,0.00051696,20960.0,20959.0,1.211896]
[1674067990359,0.00051696,20960.0,20959.0,1.41931932]
[1674067990623,0.00051696,20960.0,20959.0,1.71931932]
[1674067990944,0.00051696,20960.0,20959.0,2.13909769]
[1674067991122,0.00051696,20960.0,20959.0,2.20423883]
[1674067991378,0.00051696,20960.0,20959.0,1.27703714]
[1674067991885,0.00051696,20960.0,20959.0,1.36903714]
[1674067993209,0.00051696,20960.0,20959.0,1.66903714]
[1674067993468,0.00051696,20960.0,20959.0,1.36903714]
[1674067994517,0.00051696,20960.0,20959.0,1.90758714]
[1674067994784,0.00051696,20960.0,20959.0,1.36903714]
[1674067995576,0.00051696,20960.0,20959.0,1.51903714]
[1674067995838,0.00051696,20960.0,20959.0,1.81903714]
[1674067996145,0.00051696,20960.0,20959.0,2.05759714]
[1674067996626,0.00051696,20960.0,20959.0,2.53479883]
[1674067997643,0.00051696,20960.0,20959.0,2.23479883]
[1674067997858,0.00051696,20960.0,20959.0,1.99623883]
[1674067998930,0.00051696,20960.0,20959.0,2.29623883]
[1674067999439,6.96e-06,20960.0,20959.0,2.30829769]
[1674067999698,6.96e-06,20960.0,20959.0,2.38589769]
[1674067999956,6.96e-06,20960.0,20959.0,2.50051428]
[1674068000226,6.96e-06,20960.0,20959.0,2.38589769]
[1674068003931,6.96e-06,20960.0,20959.0,2.50051428]
[1674068004129,6.96e-06,20960.0,20959.0,2.42331428]
[1674068004385,6.96e-06,20960.0,20959.0,2.92773197]
[1674068004934,6.96e-06,20960.0,20959.0,2.81311538]
[1674068005196,6.96e-06,20960.0,20959.0,3.04234855]
[1674068005433,6.96e-06,20960.0,20959.0,2.81311538]
[1674068005702,0.01093655,20965.0,20960.0,5.304e-05]
[1674068005942,0.01093655,20965.0,20962.0,0.15]
[1674068006193,0.01093655,20965.0,20963.0,1.688682]
[1674068006449,0.01093655,20965.0,20963.0,1.43109]
[1674068006702,0.20654784,20964.0,20963.0,1.43109]
[1674068006963,0.20654784,20964.0,20963.0,0.95406]
[1674068007986,0.20654784,20964.0,20963.0,1.01006]
[1674068008247,0.20654784,20964.0,20963.0,0.95406]
[1674068008784,0.20654784,20964.0,20963.0,1.01006]
[1674068009553,0.39774897,20964.0,20963.0,0.056]
[1674068009833,0.73088897,20964.0,20963.0,0.056]
[1674068010098,1.68523674,20964.0,20963.0,0.056]
[1674068010437,1.68523674,20964.0,20963.0,0.05606]
[1674068010661,3.31771273,20964.0,20963.0,0.05606]
[1674068010924,3.31806474,20964.0,20963.0,0.05606]
[1674068011429,3.01806474,20964.0,20963.0,0.05606]
[1674068011742,3.01806474,20964.0,20963.0,6e-05]
[1674068011743,3.56671847,20964.0,20963.0,6e-05]
[1674068011973,3.56971847,20964.0,20963.0,0.00706]
[1674068012241,3.84561572,20964.0,20963.0,0.00706]
[1674068012502,3.90249795,20964.0,20963.0,0.00706]
[1674068012765,3.37265322,20964.0,20963.0,0.00706]
[1674068013054,3.71554754,20964.0,20963.0,0.00706]
[1674068014862,3.71554754,20964.0,20963.0,0.00128681]
[1674068015609,3.71175419,20964.0,20963.0,0.00128681]
[1674068016362,5.1304613,20964.0,20963.0,0.00128681]
[1674068016661,4.19757848,20964.0,20963.0,0.00128681]
[1674068016977,3.95625536,20964.0,20963.0,0.00128681]
[1674068017151,3.71497393,20964.0,20963.0,0.00128681]
[1674068017371,3.71488023,20964.0,20963.0,0.00128681]
[1674068017626,3.71078709,20964.0,20963.0,0.00128681]
[1674068017875,4.00935937,20964.0,20963.0,0.00128681]
[1674068018139,4.20463922,20964.0,20963.0,0.00128681]
[1674068018697,4.00526412,20964.0,20963.0,0.00128681]
[1674068018937,4.00526412,20964.0,20960.0,5.304e-05]
[1674068018938,0.00110028,20962.0,20960.0,5.304e-05]
[1674068019195,3.74997677,20961.0,20960.0,5.304e-05]
[1674068019494,4.76132841,20961.0,20960.0,5.304e-05]
[1674068019712,0.15,20960.0,20954.0,0.34475198]
[1674068019985,0.56334752,20955.0,20951.0,0.060171]
[1674068020229,0.0775,20952.0,20951.0,0.060171]
[1674068020483,0.9169015,20952.0,20951.0,0.060171]
[1674068021024,0.869068,20952.0,20951.0,0.060171]
[1674068021302,0.869068,20952.0,20951.0,0.240361]
[1674068021550,0.913068,20952.0,20951.0,0.060171]
[1674068021818,0.435787,20952.0,20951.0,0.060171]
[1674068022112,0.365769,20952.0,20951.0,0.060171]
[1674068022367,0.371341,20952.0,20951.0,0.060171]
[1674068022647,0.371341,20952.0,20950.0,0.0087703]
[1674068022884,0.324041,20951.0,20950.0,0.0087703]
[1674068023149,0.32319,20951.0,20950.0,0.0087703]
[1674068023435,0.044,20952.0,20950.0,0.0087703]
[1674068023690,1.032125,20953.0,20950.0,0.0087703]
[1674068023952,0.005,20951.0,20950.0,0.0087703]
[1674068024196,0.395755,20951.0,20950.0,0.0087703]
[1674068024446,0.384021,20951.0,20950.0,0.0087703]
[1674068024708,1.415429,20951.0,20950.0,0.0087703]
[1674068024965,1.7632625,20951.0,20950.0,0.0087703]
[1674068025225,2.07791545,20951.0,20950.0,0.0087703]
[1674068025485,2.82432054,20951.0,20950.0,0.0087703]
[1674068025737,2.81582054,20951.0,20950.0,0.0087703]
[1674068025998,2.95242054,20951.0,20950.0,0.0087703]
[1674068026263,2.95242054,20951.0,20950.0,0.20309127]
[1674068026526,1.75363009,20951.0,20950.0,0.0087703]
[1674068027338,1.79763009,20951.0,20950.0,0.0087703]
[1674068027519,1.75363009,20951.0,20950.0,0.0087703]
[1674068027767,1.84463009,20951.0,20950.0,0.0087703]
[1674068028988,1.75363009,20951.0,20950.0,0.0087703]
[1674068029248,1.75363009,20951.0,20950.0,0.20309127]
[1674068029249,1.029125,20951.0,20950.0,0.20309127]
[1674068029509,0.16423,20951.0,20950.0,0.0087703]
[1674068030055,0.091,20951.0,20950.0,0.0087703]
[1674068030312,1.045608,20951.0,20950.0,0.0087703]
[1674068030581,1.42049,20951.0,20950.0,0.0087703]
[1674068031107,1.64212709,20951.0,20950.0,0.0087703]
[1674068031364,2.01972709,20951.0,20950.0,0.0087703]
[1674068032175,1.92872709,20951.0,20950.0,0.0087703]
[1674068032468,2.01972709,20951.0,20950.0,0.0087703]
[1674068032971,1.92872709,20951.0,20950.0,0.0087703]
[1674068033235,1.71972709,20951.0,20950.0,0.0087703]
[1674068034521,1.64212709,20951.0,20950.0,0.0087703]
[1674068034779,1.55112709,20951.0,20950.0,0.0087703]
[1674068035066,1.07382309,20951.0,20950.0,0.0087703]
[1674068035280,1.16482309,20951.0,20950.0,0.0087703]
[1674068035781,1.07382309,20951.0,20950.0,0.0087703]
[1674068036044,0.59651909,20951.0,20950.0,0.0087703]
[1674068036844,0.61071909,20951.0,20950.0,0.0087703]
[1674068037083,0.40263709,20951.0,20950.0,0.0087703]
[1674068037328,0.521811,20951.0,20950.0,0.0087703]
[1674068038064,0.340811,20951.0,20950.0,0.0087703]
[1674068038311,0.430811,20951.0,20950.0,0.0087703]
[1674068039321,0.09,20951.0,20950.0,0.0087703]
[1674068039577,0.09,20951.0,20950.0,0.00865994]
[1674068039848,0.09,20951.0,20950.0,0.06248696]
[1674068040116,0.09,20951.0,20950.0,0.32027396]
[1674068040373,0.09,20951.0,20950.0,0.94759996]
[1674068041152,0.77530729,20955.0,20950.0,0.94759996]
[1674068041407,0.053,20951.0,20950.0,1.03656494]
[1674068041661,0.477194,20956.0,20950.0,1.42492096]
[1674068041941,0.007,20951.0,20950.0,1.54203957]
[1674068042179,0.477185,20957.0,20950.0,1.81566859]
[1674068042180,0.23842489,20957.0,20950.0,1.81566859]
[1674068042451,0.007,20955.0,20951.0,0.42215198]
[1674068042947,0.657956,20958.0,20953.0,0.477256]
[1674068042949,0.1808,20958.0,20953.0,0.477258]
[1674068043210,0.73726924,20959.0,20954.0,0.34432097]
[1674068043467,0.18116,20961.0,20955.0,1.40643397]
[1674068043731,0.23659018,20960.0,20956.0,0.27152097]
[1674068044009,0.23659018,20960.0,20957.0,0.477161]
[1674068044250,0.23659018,20960.0,20957.0,0.19432097]
[1674068044526,0.23659018,20960.0,20955.0,0.34475198]
[1674068044527,0.25801692,20958.0,20955.0,0.34475198]
[1674068044784,0.314936,20957.0,20953.0,1.301798]
[1674068045040,0.30585042,20958.0,20953.0,0.954498]
[1674068045041,0.3866075,20956.0,20953.0,0.954498]
[1674068045307,0.0478335,20956.0,20953.0,0.954498]
[1674068045595,0.25901692,20958.0,20955.0,0.058]
[1674068045857,0.25801692,20958.0,20955.0,0.19432097]
[1674068046107,0.25801692,20958.0,20954.0,0.62723]
[1674068046615,0.25801692,20958.0,20954.0,0.954465]
[1674068046878,0.001,20956.0,20954.0,0.954465]
[1674068047159,0.25801692,20958.0,20954.0,0.954465]
[1674068047387,0.25901692,20958.0,20954.0,1.20678597]
[1674068047987,0.25901692,20958.0,20954.0,1.012465]
[1674068048246,0.25901692,20958.0,20954.0,0.535235]
[1674068048516,0.42817531,20958.0,20954.0,0.535234]
[1674068049031,1.38249131,20958.0,20954.0,0.058]
[1674068049332,0.351871,20957.0,20954.0,0.058]
[1674068049595,0.333048,20956.0,20954.0,0.058]
[1674068049879,0.308829,20955.0,20954.0,0.058]